fUST/lending_fUST_20250918
["ID","MTS","AMOUNT","RATE_DAILY","PERIOD"]
[386037808,1758192643551,-480.0,0.0002297,3]
[386037809,1758192643560,-480.0,0.0002297,3]
[386037810,1758192643571,-467.52998389,0.0002297,3]
[386037811,1758192643581,-500.0,0.0002297,3]
[386037812,1758192643590,-1133.15,0.0002297,3]
[386037813,1758192643599,-249.777469,0.0002297,7]
[386037814,1758192643609,-500.0,0.0002297,3]
[386037815,1758192643618,-500.0,0.00022971,3]
[386037816,1758192643627,-500.0,0.00022971,3]
[386037817,1758192643636,-500.0,0.00022971,3]
[386037818,1758192643646,-500.0,0.00022971,3]
[386037819,1758192643655,-500.0,0.00022971,3]
[386037820,1758192643665,-511.59808825,0.00022971,3]
[386037821,1758192643674,-1133.15,0.00022971,3]
[386037822,1758192643683,-1133.15,0.00022971,3]
[386037823,1758192643693,-1133.15,0.00022971,3]
[386037824,1758192643703,-1133.15,0.00022971,3]
[386037825,1758192643712,-1133.15,0.00022971,3]
[386037826,1758192643721,-1133.15,0.00022971,3]
[386037827,1758192643731,-1133.15,0.00022971,3]
[386037828,1758192643740,-1133.15,0.00022971,3]
[386037829,1758192643750,-1133.15,0.00022971,3]
[386037830,1758192643759,-1133.15,0.00022971,3]
[386037831,1758192643769,-1133.15,0.00022971,3]
[386037832,1758192643777,-1133.15,0.00022971,3]
[386037833,1758192643788,-815.17752267,0.00022972,2]
[386037834,1758192643797,-151.0,0.00022972,7]
[386037835,1758192643807,-151.0,0.00022972,7]
[386037836,1758192643816,-151.0,0.00022972,7]
[386037837,1758192643825,-1133.15,0.00022972,3]
[386037838,1758192643835,-55767.25188124,0.00022972,2]
[386037839,1758192643849,-1008.12445267,0.00022972,2]
[386037840,1758192643860,-440.67347045,0.00022972,2]
[386037841,1758192643871,-37252.40109663,0.00022972,2]
[386037842,1758192643883,-749.12691578,0.00022972,2]
[386037843,1758192643952,-800.3032821,0.00022972,2]
[386037844,1758192643968,-1180.66619999,0.00022972,2]
[386037845,1758192643978,-2067.59774535,0.00022972,2]
[386037846,1758192643990,-3785.32477194,0.00022972,2]
[386037877,1758192646129,-480.0,0.00022966,3]
[386037878,1758192646139,-136534.3638022,0.00022972,2]
[386037879,1758192646148,-502.34057584,0.00022973,2]
[386037880,1758192646158,-502.95539007,0.00022973,2]
[386037881,1758192646167,-500.0,0.00022973,2]
[386037882,1758192646176,-500.77986851,0.00022973,2]
[386037883,1758192646186,-500.0,0.00022973,2]
[386037884,1758192646195,-1133.15,0.00022989,3]
[386037885,1758192646204,-1133.15,0.00022989,3]
[386037886,1758192646214,-1133.15,0.00022989,3]
[386037887,1758192646223,-1133.15,0.00022989,3]
[386037888,1758192646232,-1133.15,0.00022989,3]
[386037889,1758192646241,-1133.15,0.00022989,3]
[386037890,1758192646251,-1133.15,0.00022989,3]
[386037891,1758192646261,-1133.15,0.00022989,3]
[386037892,1758192646271,-1133.35,0.00022989,3]
[386037893,1758192646280,-100000.0,0.0002299,2]
[386037894,1758192646290,-151.0,0.0002299,7]
[386037895,1758192646300,-153.055334,0.0002299,7]
[386037896,1758192646309,-151.0,0.0002299,7]
[386037897,1758192646319,-159.818904,0.0002299,7]
[386037898,1758192646329,-151.917481,0.0002299,7]
[386037899,1758192646339,-158.434973,0.0002299,7]
[386037900,1758192646348,-157.099397,0.0002299,7]
[386037901,1758192646357,-151.0,0.0002299,7]
[386037902,1758192646367,-847.96496735,0.00023,3]
[386037903,1758192646377,-217.95274215,0.00023,3]
[386037904,1758192646386,-466.64894845,0.00023069,3]
[386037905,1758192646396,-480.0,0.00023069,3]
[386037906,1758192646405,-480.0,0.00023069,3]
[386037907,1758192646415,-480.0,0.00023069,3]
[386037908,1758192646424,-480.0,0.00023069,3]
[386037909,1758192646434,-480.0,0.00023069,3]
[386037910,1758192646443,-480.0,0.00023069,3]
[386037911,1758192646454,-480.0,0.00023069,3]
[386037912,1758192646464,-480.0,0.00023069,3]
[386037913,1758192646473,-480.0,0.00023069,3]
[386037914,1758192646483,-480.0,0.00023069,3]
[386037915,1758192646492,-480.0,0.00023069,3]
[386037916,1758192646501,-480.0,0.00023069,3]
[386037917,1758192646510,-499.4,0.00023069,3]
[386037918,1758192646520,-480.0,0.00023069,3]
[386037919,1758192646529,-480.0,0.00023069,3]
[386037920,1758192646539,-480.0,0.00023069,3]
[386037921,1758192646548,-480.0,0.00023069,3]
[386037922,1758192646557,-154.881776,0.00023069,7]
[386037923,1758192646566,-480.0,0.00023069,3]
[386037924,1758192646575,-480.0,0.00023069,3]
[386037925,1758192646584,-480.0,0.00023069,3]
[386037926,1758192646594,-244.56191369,0.00023069,3]
[386037927,1758192646603,-566.85,0.00023069,3]
[386037928,1758192646613,-480.0,0.00023069,3]
[386037929,1758192646622,-396.69948626,0.00023069,3]
[386037930,1758192646631,-480.0,0.00023069,3]
[386037931,1758192646641,-480.0,0.00023069,3]
[386037932,1758192646650,-480.0,0.00023069,3]
[386037933,1758192646659,-488.64970808,0.00023069,3]
[386037934,1758192646668,-580.737042,0.00023069,3]
[386037935,1758192646678,-1004.48556402,0.00023069,3]
[386037936,1758192646687,-487.72238272,0.00023069,3]
[386037937,1758192646697,-480.0,0.00023069,3]
[386037938,1758192646706,-480.0,0.00023069,3]
[386037939,1758192646716,-480.0,0.00023069,3]
[386037940,1758192646725,-480.0,0.00023069,3]
[386037941,1758192646735,-480.0,0.00023069,3]
[386037942,1758192646744,-480.0,0.00023069,3]
[386037943,1758192646754,-480.0,0.00023069,3]
[386037944,1758192646763,-480.0,0.00023069,3]
[386037945,1758192646772,-480.0,0.00023069,3]
[386037946,1758192646782,-480.0,0.00023069,3]
[386037947,1758192646791,-480.0,0.00023069,3]
[386037948,1758192646800,-480.0,0.00023069,3]
[386037949,1758192646810,-480.0,0.00023069,3]
[386037950,1758192646819,-480.0,0.00023069,3]
[386037951,1758192646829,-444.86832342,0.00023069,3]
[386037952,1758192646838,-480.0,0.00023069,3]
[386037953,1758192646848,-480.0,0.00023069,3]
[386037954,1758192646857,-480.0,0.00023069,3]
[386037955,1758192646867,-488.54173839,0.00023069,3]
[386037956,1758192646876,-314.68369324,0.00023069,3]
[386037957,1758192646886,-480.0,0.00023069,3]
[386037958,1758192646896,-480.0,0.00023069,3]
[386037959,1758192646906,-480.0,0.00023069,3]
[386037960,1758192646915,-480.0,0.00023069,3]
[386037961,1758192646925,-480.0,0.00023069,3]
[386037962,1758192646934,-480.0,0.00023069,3]
[386037963,1758192646943,-467.70068758,0.00023069,3]
[386037964,1758192646953,-480.0,0.00023069,3]
[386037965,1758192646963,-480.0,0.00023069,3]
[386037966,1758192646972,-271.93670742,0.00023069,3]
[386037967,1758192646982,-480.0,0.00023069,3]
[386037968,1758192646991,-493.21689051,0.00023069,3]
[386037969,1758192647000,-483.19120765,0.00023069,3]
[386037970,1758192647014,-480.0,0.00023069,3]
[386037971,1758192647024,-480.0,0.00023069,3]
[386037972,1758192647034,-480.0,0.00023069,3]
[386037973,1758192647043,-480.0,0.00023069,3]
[386037974,1758192647054,-501.34613332,0.00023069,3]
[386037975,1758192647063,-480.0,0.00023069,3]
[386037976,1758192647072,-480.0,0.00023069,3]
[386037977,1758192647083,-480.0,0.00023069,3]
[386037978,1758192647093,-480.0,0.00023069,3]
[386037979,1758192647102,-480.0,0.00023069,3]
[386037980,1758192647112,-489.24244509,0.00023069,3]
[386037981,1758192647121,-480.0,0.00023069,3]
[386037982,1758192647131,-480.0,0.00023069,3]
[386037983,1758192647139,-606.43944849,0.00023069,3]
[386037984,1758192647149,-480.0,0.00023069,3]
[386037985,1758192647158,-480.0,0.00023069,3]
[386037986,1758192647167,-246.57708116,0.00023069,3]
[386037987,1758192647176,-251.4830029,0.00023069,3]
[386037988,1758192647185,-500.0,0.00023069,3]
[386037989,1758192647195,-488.79425177,0.00023069,3]
[386037990,1758192647204,-500.0,0.00023069,3]
[386037991,1758192647213,-480.0,0.00023069,3]
[386037992,1758192647223,-480.0,0.00023069,3]
[386037993,1758192647232,-483.99853273,0.00023069,3]
[386037994,1758192647241,-480.0,0.00023069,3]
[386037995,1758192647251,-480.0,0.00023069,3]
[386037996,1758192647264,-480.0,0.00023069,3]
[386037997,1758192647273,-480.0,0.00023069,3]
[386037998,1758192647282,-480.0,0.00023069,3]
[386037999,1758192647291,-480.0,0.00023069,3]
[386038000,1758192647300,-491.62782442,0.00023069,3]
[386038001,1758192647309,-480.0,0.00023069,3]
[386038002,1758192647317,-584.37024212,0.00023069,3]
[386038003,1758192647327,-575.14382805,0.00023069,3]
[386038004,1758192647336,-500.0,0.00023069,3]
[386038005,1758192647345,-480.0,0.00023069,3]
[386038006,1758192647354,-480.0,0.00023069,3]
[386038007,1758192647363,-462.23652611,0.00023069,3]
[386038008,1758192647372,-462.99680815,0.00023069,3]
[386038009,1758192647381,-483.35898547,0.00023069,3]
[386038010,1758192647390,-462.19500077,0.00023069,3]
[386038011,1758192647399,-480.0,0.00023069,3]
[386038012,1758192647408,-469.6489429,0.00023069,3]
[386038013,1758192647417,-480.0,0.00023069,3]
[386038014,1758192647427,-480.0,0.00023069,3]
[386038015,1758192647436,-480.0,0.00023069,3]
[386038016,1758192647445,-480.0,0.00023069,3]
[386038017,1758192647455,-480.0,0.00023069,3]
[386038018,1758192647463,-467.09798883,0.00023069,3]
[386038019,1758192647472,-480.74314884,0.00023069,3]
[386038020,1758192647481,-462.99820776,0.00023069,3]
[386038021,1758192647490,-480.0,0.00023069,3]
[386038022,1758192647499,-569.43925677,0.00023069,3]
[386038023,1758192647509,-480.0,0.00023069,3]
[386038024,1758192647518,-158.55928715,0.00023069,3]
[386038025,1758192647527,-480.0,0.00023069,3]
[386038026,1758192647536,-546.9188699,0.00023069,3]
[386038027,1758192647545,-480.0,0.00023069,3]
[386038028,1758192647554,-481.81456433,0.00023069,3]
[386038029,1758192647563,-482.20840444,0.00023069,3]
[386038030,1758192647572,-480.0,0.00023069,3]
[386038031,1758192647582,-480.0,0.00023069,3]
[386038032,1758192647591,-480.50877453,0.00023069,3]
[386038033,1758192647600,-461.3338668,0.00023069,3]
[386038034,1758192647610,-480.0,0.00023069,3]
[386038035,1758192647619,-480.0,0.00023069,3]
[386038036,1758192647628,-462.402542,0.00023069,3]
[386038037,1758192647637,-151.0,0.00023069,7]
[386038038,1758192647646,-151.0,0.00023069,7]
[386038039,1758192647655,-152.231449,0.00023069,7]
[386038040,1758192647664,-480.0,0.00023069,3]
[386038041,1758192647673,-480.0,0.00023069,3]
[386038042,1758192647683,-463.00077379,0.00023069,3]
[386038043,1758192647692,-480.0,0.00023069,3]
[386038044,1758192647701,-462.64317986,0.00023069,3]
[386038045,1758192647711,-480.0,0.00023069,3]
[386038046,1758192647720,-480.0,0.00023069,3]
[386038047,1758192647729,-480.0,0.00023069,3]
[386038048,1758192647739,-480.0,0.00023069,3]
[386038049,1758192647748,-480.0,0.00023069,3]
[386038050,1758192647757,-480.0,0.00023069,3]
[386038051,1758192647767,-482.83265793,0.00023069,3]
[386038052,1758192647776,-480.0,0.00023069,3]
[386038053,1758192647785,-488.19408182,0.00023069,3]
[386038054,1758192647795,-480.0,0.00023069,3]
[386038055,1758192647804,-480.0,0.00023069,3]
[386038056,1758192647814,-480.0,0.00023069,3]
[386038057,1758192647823,-480.0,0.00023069,3]
[386038058,1758192647833,-480.0,0.00023069,3]
[386038059,1758192647843,-480.0,0.00023069,3]
[386038060,1758192647852,-483.12734175,0.00023069,3]
[386038061,1758192647862,-480.0,0.00023069,3]
[386038062,1758192647871,-480.0,0.00023069,3]
[386038063,1758192647881,-480.0,0.00023069,3]
[386038064,1758192647890,-486.88741737,0.00023069,3]
[386038065,1758192647900,-480.0,0.00023069,3]
[386038066,1758192647910,-482.26424483,0.00023069,3]
[386038067,1758192648007,-485.41186692,0.00023069,3]
[386038068,1758192648018,-480.0,0.00023069,3]
[386038069,1758192648027,-480.0,0.00023069,3]
[386038070,1758192648037,-480.0,0.00023069,3]
[386038071,1758192648046,-480.0,0.00023069,3]
[386038072,1758192648056,-329.28838203,0.00023069,3]
[386038073,1758192648065,-480.0,0.00023069,3]
[386038074,1758192648075,-480.0,0.00023069,3]
[386038075,1758192648084,-480.0,0.00023069,3]
[386038076,1758192648094,-480.0,0.00023069,3]
[386038077,1758192648104,-486.84908129,0.00023069,3]
[386038078,1758192648113,-272.954636,0.00023069,7]
[386038079,1758192648123,-480.0,0.00023069,3]
[386038080,1758192648132,-480.0,0.00023069,3]
[386038081,1758192648142,-480.0,0.00023069,3]
[386038082,1758192648151,-480.0,0.00023069,3]
[386038083,1758192648160,-480.0,0.00023069,3]
[386038084,1758192648170,-480.0,0.00023069,3]
[386038085,1758192648180,-480.0,0.00023069,3]
[386038086,1758192648190,-480.0,0.00023069,3]
[386038087,1758192648200,-480.0,0.00023069,3]
[386038088,1758192648209,-480.0,0.00023069,3]
[386038089,1758192648218,-480.0,0.00023069,3]
[386038090,1758192648228,-480.0,0.00023069,3]
[386038091,1758192648237,-482.95809688,0.00023069,3]
[386038092,1758192648247,-480.0,0.00023069,3]
[386038093,1758192648256,-480.0,0.00023069,3]
[386038094,1758192648265,-500.0,0.00023073,2]
[386038095,1758192648276,-500.0,0.00023073,2]
[386038096,1758192648286,-501.45647709,0.00023073,2]
[386038097,1758192648298,-500.0,0.00023073,2]
[386038098,1758192648308,-500.0,0.00023073,2]
[386038099,1758192648318,-556.08978803,0.00023073,2]
[386038100,1758192648328,-501.09363103,0.00023073,2]
[386038101,1758192648338,-500.0,0.00023073,2]
[386038102,1758192648348,-500.0,0.00023073,2]
[386038103,1758192648358,-500.0,0.00023073,2]
[386038104,1758192648368,-546.89417717,0.00023073,2]
[386038105,1758192648377,-500.0,0.00023073,2]
[386038106,1758192648387,-500.0,0.00023073,2]
[386038107,1758192648397,-500.98183795,0.00023073,2]
[386038108,1758192648407,-500.0,0.00023073,2]
[386038109,1758192648416,-431.72301424,0.00023073,2]
[386038110,1758192648426,-501.01302865,0.00023073,2]
[386038111,1758192648435,-500.0,0.00023073,2]
[386038112,1758192648445,-500.0,0.00023073,2]
[386038113,1758192648456,-500.0,0.00023073,2]
[386038114,1758192648465,-500.0,0.00023073,2]
[386038115,1758192648476,-500.0,0.00023073,2]
[386038116,1758192648485,-500.0,0.00023073,2]
[386038117,1758192648495,-500.0,0.00023073,2]
[386038118,1758192648505,-500.0,0.00023073,2]
[386038119,1758192648515,-150.0,0.00023073,2]
[386038120,1758192648525,-217.0,0.00023074,2]
[386038121,1758192648535,-1766.3769522,0.00023092,2]
[386038122,1758192648544,-331.0,0.00023159,2]
[386038123,1758192648553,-217.0,0.00023179,2]
[386038124,1758192648563,-300.0,0.0002321,2]
[386038125,1758192648573,-485.29,0.0002324,3]
[386038126,1758192648582,-480.0,0.0002324,3]
[386038127,1758192648591,-480.0,0.0002324,3]
[386038128,1758192648601,-486.25790352,0.00023241,3]
[386038129,1758192648611,-548.12,0.00023241,3]
[386038130,1758192648620,-480.0,0.00023241,3]
[386038131,1758192648630,-480.0,0.00023241,3]
[386038132,1758192648640,-480.0,0.00023241,3]
[386038133,1758192648650,-564.47,0.00023242,3]
[386038134,1758192648660,-1322.15,0.00023242,3]
[386038135,1758192648670,-480.0,0.00023242,3]
[386038136,1758192648680,-480.0,0.00023242,3]
[386038137,1758192648689,-768.04,0.00023242,3]
[386038138,1758192648698,-480.0,0.00023242,3]
[386038139,1758192648708,-480.0,0.00023242,3]
[386038140,1758192648717,-480.0,0.00023242,3]
[386038141,1758192648727,-480.0,0.00023242,3]
[386038142,1758192648738,-213.62343847,0.00023243,3]
[386038143,1758192648747,-480.0,0.00023243,3]
[386038144,1758192648756,-1419.13,0.00023244,3]
[386038145,1758192648766,-613.58,0.00023244,3]
[386038146,1758192648776,-480.0,0.00023244,3]
[386038147,1758192648786,-193.861,0.00023259,3]
[386038148,1758192648796,-965.98,0.00023287,2]
[386038149,1758192648807,-480.0,0.00023343,3]
[386038150,1758192648816,-480.0,0.00023343,3]
[386038151,1758192648825,-480.0,0.00023343,3]
[386038152,1758192648835,-480.0,0.00023343,3]
[386038153,1758192648845,-530.02,0.00023343,3]
[386038154,1758192648854,-362.50584046,0.00023343,3]
[386038155,1758192648864,-480.0,0.00023343,3]
[386038156,1758192648873,-480.0,0.00023343,3]
[386038157,1758192648883,-480.0,0.00023343,3]
[386038158,1758192648892,-480.0,0.00023343,3]
[386038159,1758192648902,-480.0,0.00023343,3]
[386038160,1758192648911,-480.0,0.00023343,3]
[386038161,1758192648921,-480.0,0.00023343,3]
[386038162,1758192648931,-497.84069144,0.00023343,3]
[386038163,1758192648940,-500.17316109,0.00023343,3]
[386038164,1758192648949,-480.0,0.00023343,3]
[386038165,1758192648959,-485.29,0.00023514,3]
[386038166,1758192648969,-480.0,0.00023514,3]
[386038167,1758192648979,-480.0,0.00023515,3]
[386038168,1758192648989,-616.56,0.00023515,3]
[386038169,1758192648999,-480.0,0.00023515,3]
[386038170,1758192649012,-1322.15,0.00023516,3]
[386038171,1758192649021,-480.0,0.00023516,3]
[386038172,1758192649031,-480.0,0.00023516,3]
[386038173,1758192649041,-768.04,0.00023516,3]
[386038174,1758192649050,-480.0,0.00023516,3]
[386038175,1758192649060,-480.0,0.00023516,3]
[386038176,1758192649069,-480.0,0.00023516,3]
[386038177,1758192649081,-432.16,0.00023517,3]
[386038178,1758192649091,-1419.13,0.00023518,3]
[386038179,1758192649101,-1111.72575167,0.00023521,2]
[386038180,1758192649111,-12787.20678978,0.00023545,2]
[386038181,1758192657626,168.0,0.00022158,2]
[386038182,1758192761101,-300.0,0.00022965,2]
[386038183,1758192761126,-3.95768345,0.00022965,3]
[386038184,1758192771849,-7969.42485453,0.0002287,2]
[386038185,1758192796678,208.70008418,0.000199,2]
[386038186,1758192810059,-191.14996631,0.00022769,2]
[386038190,1758192830212,-163.992393,0.00022769,2]
[386038191,1758192855870,168.0,0.0002216,2]
[386038192,1758192865937,9623.30991582,0.00022079,2]
[386038193,1758192866049,1064.36107598,0.00022079,2]
[386038194,1758192899349,183.909315,0.00021967,2]
[386038195,1758192914817,-409.67196012,0.00022769,2]
[386038196,1758192914846,-300.0,0.00022869,2]
[386038197,1758192914875,-300.0,0.00022869,2]
[386038198,1758192914903,-300.0,0.00022869,2]
[386038199,1758192914934,-1200.0,0.00022869,2]
[386038200,1758193095715,398.3881975,0.00027808,30]
[386038201,1758193143247,-156.68162977,0.00022869,2]
[386038202,1758193202950,-300.0,0.00022869,2]
[386038203,1758193202974,-75.50281246,0.00022869,2]
[386038205,1758193382161,6484.42680428,0.0002,2]
[386038206,1758193397551,-160.40748888,0.00022867,2]
[386038207,1758193397579,-224.49718754,0.00022869,2]
[386038208,1758193397606,-497.48829147,0.00022869,2]
[386038209,1758193397636,-1200.0,0.00022869,2]
[386038210,1758193397665,-300.0,0.00022869,2]
[386038211,1758193405599,-2483.19294872,0.0002287,2]
[386038212,1758193415526,-10000.01,0.0002287,2]
[386038213,1758193513215,212.42080898,0.000199,2]
[386038215,1758193557490,505.0,0.000222,2]
[386038217,1758193680190,197.55,0.0001973,2]
[386038218,1758193689608,303.9576834,0.00021964,2]
[386038219,1758193690969,259.7190174,0.000199,2]
[386038220,1758193703391,372.53455417,0.00030357,50]
[386038223,1758193770979,-1563.03534707,0.0002287,2]
[386038224,1758193771007,-300.0,0.00022961,2]
[386038225,1758193771129,-4795.29179608,0.00022961,2]
[386038226,1758193771153,-10000.01,0.00022961,2]
[386038227,1758193775812,-10000.01,0.00022961,2]
[386038228,1758193775871,-10000.01,0.00022961,2]
[386038241,1758193832137,-300.0,0.0002296,2]
[386038242,1758193832146,-300.0,0.0002296,2]
[386038243,1758193832156,-300.0,0.0002296,2]
[386038244,1758193832165,-580.000025,0.0002296,2]
[386038245,1758193832176,-619.999975,0.0002296,2]
[386038246,1758193832186,-8271.78397898,0.00022961,2]
[386038247,1758193832197,-451.04436464,0.00022961,2]
[386038248,1758193832213,-11617.20771814,0.00022961,2]
[386038249,1758193832223,-905.14658223,0.00022961,2]
[386038251,1758193832234,-6330.74214277,0.00022961,2]
[386038284,1758193838093,-593.2364271,0.00022961,2]
[386038296,1758193838200,-1011.7194644,0.00022961,2]
[386038464,1758193840190,-9371.95660451,0.00022961,2]
[386038466,1758193840200,-500.0,0.00022961,2]
[386038468,1758193840209,-500.0,0.00022961,2]
[386038470,1758193840219,-40.97610569,0.00022961,2]
[386038786,1758193843378,-459.02389431,0.00022961,2]
[386038788,1758193843388,-353.41958098,0.00022961,2]
[386038791,1758193843399,-146.58041902,0.00022961,2]
[386038793,1758193843408,-500.0,0.00022961,2]
[386038795,1758193843420,-500.0,0.00022961,2]
[386038807,1758193843530,-500.0,0.00022961,2]
[386038809,1758193843540,-500.0,0.00022961,2]
[386038811,1758193843551,-500.0,0.00022961,2]
[386038814,1758193843560,-500.0,0.00022961,2]
[386038815,1758193843570,-500.0,0.00022961,2]
[386038817,1758193843579,-500.0,0.00022961,2]
[386038819,1758193843588,-500.0,0.00022961,2]
[386038821,1758193843598,-500.0,0.00022961,2]
[386038823,1758193843607,-228.86704952,0.00022961,2]
[386038826,1758193843619,-271.13295048,0.00022961,2]
[386038828,1758193843628,-143.94136845,0.00022961,2]
[386039070,1758193846158,-356.05863155,0.00022961,2]
[386039072,1758193846168,-500.0,0.00022961,2]
[386039074,1758193846178,-500.0,0.00022961,2]
[386039076,1758193846187,-500.0,0.00022961,2]
[386039078,1758193846197,-399.58598348,0.00022961,2]
[386039080,1758193846207,-500.0,0.00022961,2]
[386039082,1758193846216,-500.0,0.00022961,2]
[386039083,1758193846225,-500.0,0.00022961,2]
[386039085,1758193846234,-480.0,0.00022962,3]
[386039087,1758193846243,-480.0,0.00022962,3]
[386039089,1758193846253,-480.0,0.00022962,3]
[386039091,1758193846262,-480.0,0.00022962,3]
[386039093,1758193846272,-480.0,0.00022962,3]
[386039095,1758193846281,-480.0,0.00022962,3]
[386039097,1758193846291,-480.0,0.00022962,3]
[386039099,1758193846300,-480.0,0.00022962,3]
[386039101,1758193846310,-480.0,0.00022962,3]
[386039103,1758193846319,-480.0,0.00022962,3]
[386039105,1758193846328,-476.04231655,0.00022962,3]
[386039107,1758193846337,-480.0,0.00022962,3]
[386039109,1758193846347,-113.24674049,0.00022962,3]
[386039111,1758193846358,-366.75325951,0.00022962,3]
[386039113,1758193846367,-480.0,0.00022962,3]
[386039116,1758193846377,-320.56131991,0.00022962,3]
[386039118,1758193846386,-480.0,0.00022962,3]
[386039120,1758193846395,-480.0,0.00022962,3]
[386039122,1758193846404,-480.0,0.00022962,3]
[386039124,1758193846413,-480.0,0.00022962,3]
[386039126,1758193846423,-480.0,0.00022962,3]
[386039128,1758193846432,-480.0,0.00022962,3]
[386039130,1758193846441,-480.0,0.00022962,3]
[386039132,1758193846450,-480.0,0.00022962,3]
[386039133,1758193846459,-480.0,0.00022962,3]
[386039136,1758193846469,-302.10346219,0.00022962,3]
[386039138,1758193846479,-480.0,0.00022962,3]
[386039139,1758193846489,-480.0,0.00022962,3]
[386039141,1758193846498,-147.83665108,0.00022962,3]
[386039144,1758193846514,-325.48431096,0.00022962,3]
[386039146,1758193846524,-470.11623041,0.00022962,3]
[386039148,1758193846533,-480.0,0.00022962,3]
[386039150,1758193846543,-480.0,0.00022962,3]
[386039152,1758193846552,-160.0,0.00022962,3]
[386039154,1758193846561,-171.20862004,0.00022962,3]
[386039156,1758193846571,-480.0,0.00022962,3]
[386039158,1758193846580,-480.0,0.00022962,3]
[386039160,1758193846589,-480.0,0.00022962,3]
[386039162,1758193846599,-480.0,0.00022962,3]
[386039164,1758193846609,-492.83429582,0.00022962,3]
[386039166,1758193846618,-480.0,0.00022962,3]
[386039168,1758193846627,-480.0,0.00022962,3]
[386039170,1758193846637,-480.0,0.00022962,3]
[386039172,1758193846646,-480.0,0.00022962,3]
[386039173,1758193846655,-480.0,0.00022962,3]
[386039175,1758193846665,-213.46994756,0.00022962,2]
[386039177,1758193846675,-196.06505216,0.00022962,2]
[386039179,1758193846684,-480.0,0.00022963,3]
[386039181,1758193846693,-480.0,0.00022963,3]
[386039183,1758193846703,-480.0,0.00022963,3]
[386039185,1758193846712,-480.0,0.00022963,3]
[386039187,1758193846722,-486.52728749,0.00022963,3]
[386039189,1758193846731,-480.0,0.00022963,3]
[386039191,1758193846740,-480.0,0.00022963,3]
[386039193,1758193846750,-328.27767239,0.00022963,3]
[386039195,1758193846759,-480.0,0.00022963,3]
[386039197,1758193846769,-480.0,0.00022963,3]
[386039199,1758193846779,-480.0,0.00022963,3]
[386039201,1758193846788,-507.79468416,0.00022963,3]
[386039203,1758193846798,-480.0,0.00022963,3]
[386039205,1758193846812,-480.0,0.00022963,3]
[386039207,1758193846823,-480.0,0.00022963,3]
[386039209,1758193846832,-225.72565862,0.00022963,3]
[386039211,1758193846844,-254.27434138,0.00022963,3]
[386039213,1758193846854,-409.60182059,0.00022963,3]
[386039215,1758193846863,-480.0,0.00022963,3]
[386039217,1758193846872,-480.0,0.00022963,3]
[386039219,1758193846882,-480.0,0.00022963,3]
[386039221,1758193846891,-480.0,0.00022963,3]
[386039223,1758193846901,-480.0,0.00022963,3]
[386039225,1758193846910,-480.0,0.00022963,3]
[386039227,1758193846919,-480.0,0.00022963,3]
[386039229,1758193846928,-480.0,0.00022963,3]
[386039231,1758193846938,-286.69743718,0.00022963,3]
[386039233,1758193846947,-480.0,0.00022963,3]
[386039235,1758193846956,-480.0,0.00022963,3]
[386039237,1758193846966,-480.0,0.00022963,3]